fUST/lending_fUST_20251202
["ID","MTS","AMOUNT","RATE_DAILY","PERIOD"]
[395409376,1764688250130,-397.0957897,0.00012329,2]
[395409378,1764688250139,-397.0957897,0.00012329,2]
[395409379,1764688250148,-397.0957897,0.00012329,2]
[395409381,1764688250158,-397.0957897,0.00012329,2]
[395409382,1764688250167,-1152.0,0.00012388,2]
[395409384,1764688250176,-260.4103811,0.00012393,2]
[395409386,1764688250185,-737.1730984,0.00012402,2]
[395409388,1764688250195,-173.12465853,0.00012435,6]
[395409390,1764688250204,-1834.04482764,0.000125,2]
[395409392,1764688250213,-151.0,0.000126,2]
[395409394,1764688250223,-160.0,0.000129,2]
[395409396,1764688250234,-151.0,0.000129,2]
[395409398,1764688250246,-161.0,0.000129,2]
[395409400,1764688250256,-7087.95750133,0.000129,2]
[395409402,1764688250265,-7087.95750133,0.000129,2]
[395409404,1764688250275,-270.0455652,0.00012941,2]
[395409406,1764688250285,-20700.11336117,0.00013,2]
[395409408,1764688250296,-151.0,0.00013,2]
[395409410,1764688250306,-151.0,0.00013,2]
[395409412,1764688250316,-151.0,0.00013,2]
[395409414,1764688250326,-151.0,0.00013,2]
[395409416,1764688250336,-151.0,0.000132,2]
[395409418,1764688250346,-600.0,0.00013228,2]
[395409421,1764688250355,-500.0,0.00013273,2]
[395409423,1764688250364,-500.0,0.00013273,2]
[395409425,1764688250374,-500.0,0.00013273,2]
[395409427,1764688250385,-500.0,0.00013273,2]
[395409429,1764688250396,-500.0,0.00013273,2]
[395409431,1764688250406,-500.0,0.00013273,2]
[395409433,1764688250415,-457.00457085,0.00013273,2]
[395409435,1764688250424,-500.0,0.00013273,2]
[395409437,1764688250433,-500.0,0.00013273,2]
[395409439,1764688250443,-500.0,0.00013273,2]
[395409441,1764688250452,-500.0,0.00013273,2]
[395409443,1764688250462,-500.0,0.00013273,2]
[395409445,1764688250472,-500.0,0.00013273,2]
[395409447,1764688250481,-500.0,0.00013273,2]
[395409449,1764688250491,-500.0,0.00013273,2]
[395409451,1764688250501,-500.0,0.00013273,2]
[395409453,1764688250511,-500.0,0.00013273,2]
[395409455,1764688250520,-500.0,0.00013273,2]
[395409457,1764688250530,-397.0957897,0.00013288,2]
[395409459,1764688250539,-397.0957897,0.00013288,2]
[395409461,1764688250548,-397.0957897,0.00013288,2]
[395409463,1764688250558,-397.0957897,0.00013288,2]
[395409465,1764688250567,-397.0957897,0.00013288,2]
[395409467,1764688250577,-397.0957897,0.00013288,2]
[395409469,1764688250587,-397.0957897,0.00013288,2]
[395409471,1764688250596,-397.0957897,0.00013288,2]
[395409474,1764688250606,-397.0957897,0.00013288,2]
[395409476,1764688250616,-397.0957897,0.00013288,2]
[395409478,1764688250625,-779.1547869,0.00013288,2]
[395409480,1764688250634,-1511.23333,0.00013288,2]
[395409481,1764688250643,-1511.23333,0.00013288,2]
[395409483,1764688250652,-1511.23333,0.00013288,2]
[395409486,1764688250662,-1511.23333,0.00013288,2]
[395409487,1764688250671,-2844.47086,0.00013288,2]
[395409490,1764688250681,-2844.47086,0.00013288,2]
[395409492,1764688250692,-2844.47086,0.00013288,2]
[395409493,1764688250701,-2844.47086,0.00013288,2]
[395409495,1764688250711,-600.0,0.00013366,2]
[395409497,1764688250721,-151.0,0.000134,2]
[395409499,1764688250730,-151.0,0.000134,2]
[395409501,1764688250739,-275.513144,0.00013489,2]
[395409503,1764688250749,-275.513144,0.00013489,2]
[395409505,1764688250758,-275.513144,0.00013489,2]
[395409507,1764688250768,-275.513144,0.00013489,2]
[395409509,1764688250777,-307.290494,0.00013489,2]
[395409511,1764688250787,-307.290494,0.00013489,2]
[395409513,1764688250801,-307.290494,0.00013489,2]
[395409516,1764688250811,-307.290494,0.00013489,2]
[395409518,1764688250821,-280.03725112,0.00013489,2]
[395409520,1764688250833,-19411.44623,0.00013489,2]
[395409522,1764688250843,-400.0,0.0001349,2]
[395409524,1764688250853,-400.0,0.0001349,3]
[395409526,1764688250865,-600.0,0.00013503,2]
[395409528,1764688250874,-173.12465853,0.00013595,8]
[395409529,1764688250884,-160.0,0.000136,2]
[395409532,1764688250894,-1613.0,0.00013627,2]
[395409534,1764688250904,-602.53881827,0.00013641,2]
[395409536,1764688250914,-220.49238942,0.00013673,2]
[395409538,1764688250924,-500.0,0.00013698,2]
[395409540,1764688250935,-500.0,0.00013698,2]
[395409542,1764688250945,-500.0,0.00013698,2]
[395409544,1764688250954,-500.0,0.00013698,2]
[395409546,1764688250964,-500.0,0.00013698,2]
[395409548,1764688250978,-500.0,0.00013698,2]
[395409550,1764688250992,-500.0,0.00013698,2]
[395409552,1764688251001,-500.0,0.00013698,2]
[395409554,1764688251013,-500.0,0.00013698,2]
[395409555,1764688251022,-500.0,0.00013698,2]
[395409556,1764688251031,-500.0,0.00013698,2]
[395409559,1764688251043,-500.0,0.00013698,2]
[395409560,1764688251053,-500.0,0.00013698,2]
[395409562,1764688251062,-500.0,0.00013698,2]
[395409564,1764688251072,-500.0,0.00013698,2]
[395409566,1764688251081,-500.0,0.00013698,2]
[395409568,1764688251091,-500.0,0.00013698,2]
[395409570,1764688251100,-500.0,0.00013698,2]
[395409572,1764688251109,-500.0,0.00013698,2]
[395409574,1764688251118,-554.41896572,0.00013698,2]
[395409576,1764688251128,-502.98353483,0.00013698,2]
[395409578,1764688251137,-520.83,0.00013698,2]
[395409579,1764688251148,-520.83,0.00013698,2]
[395409581,1764688251158,-520.83,0.00013698,2]
[395409584,1764688251167,-520.83,0.00013698,2]
[395409585,1764688251177,-520.83,0.00013698,2]
[395409587,1764688251186,-520.83,0.00013698,2]
[395409589,1764688251195,-520.83,0.00013698,2]
[395409591,1764688251204,-520.83,0.00013698,2]
[395409593,1764688251214,-520.83,0.00013698,2]
[395409595,1764688251224,-520.83,0.00013698,2]
[395409597,1764688251233,-520.83,0.00013698,2]
[395409599,1764688251242,-520.83,0.00013698,2]
[395409601,1764688251251,-520.83,0.00013698,2]
[395409603,1764688251260,-520.83,0.00013698,2]
[395409605,1764688251270,-520.83,0.00013698,2]
[395409607,1764688251279,-520.83,0.00013698,2]
[395409609,1764688251289,-520.83,0.00013698,2]
[395409611,1764688251300,-520.83,0.00013698,2]
[395409613,1764688251311,-520.83,0.00013698,2]
[395409615,1764688251320,-520.83,0.00013698,2]
[395409616,1764688251330,-520.83,0.00013698,2]
[395409617,1764688251339,-520.83,0.00013698,2]
[395409618,1764688251348,-520.83,0.00013698,2]
[395409619,1764688251356,-520.91,0.00013698,2]
[395409620,1764688251366,-517.76433916,0.00013698,2]
[395409621,1764688251375,-500.0,0.00013698,2]
[395409622,1764688251384,-500.0,0.00013698,2]
[395409623,1764688251393,-525.98452653,0.00013698,2]
[395409624,1764688251401,-3590.47,0.00013698,2]
[395409625,1764688251410,-3590.47,0.00013698,2]
[395409626,1764688251419,-3590.47,0.00013698,2]
[395409627,1764688251428,-3590.47,0.00013698,2]
[395409628,1764688251436,-3590.47,0.00013698,2]
[395409629,1764688251445,-3590.47,0.00013698,2]
[395409630,1764688251454,-3590.47,0.00013698,2]
[395409631,1764688251463,-3590.47,0.00013698,2]
[395409632,1764688251472,-3590.47,0.00013698,2]
[395409633,1764688251481,-3590.47,0.00013698,2]
[395409634,1764688251490,-3590.47,0.00013698,2]
[395409635,1764688251499,-3590.47,0.00013698,2]
[395409636,1764688251509,-3590.47,0.00013698,2]
[395409637,1764688251517,-3590.47,0.00013698,2]
[395409638,1764688251526,-3590.47,0.00013698,2]
[395409639,1764688251535,-3590.47,0.00013698,2]
[395409640,1764688251545,-3590.47,0.00013698,2]
[395409642,1764688251554,-3590.47,0.00013698,2]
[395409643,1764688251563,-3590.47,0.00013698,2]
[395409644,1764688251572,-3590.47,0.00013698,2]
[395409646,1764688251581,-3590.47,0.00013698,2]
[395409648,1764688251591,-3590.47,0.00013698,2]
[395409650,1764688251600,-3590.47,0.00013698,2]
[395409652,1764688251610,-3590.52874191,0.00013698,2]
[395409654,1764688251619,-275.513144,0.00013698,2]
[395409656,1764688251628,-275.513144,0.00013698,2]
[395409657,1764688251637,-275.513144,0.00013698,2]
[395409659,1764688251647,-275.513142,0.00013698,2]
[395409661,1764688251656,-307.290494,0.00013698,2]
[395409663,1764688251665,-307.290494,0.00013698,2]
[395409665,1764688251675,-307.290494,0.00013698,2]
[395409667,1764688251684,-307.290486,0.00013698,2]
[395409669,1764688251693,-1511.23333,0.00013698,2]
[395409671,1764688251702,-1511.23333,0.00013698,2]
[395409673,1764688251711,-1511.23333,0.00013698,2]
[395409675,1764688251721,-1511.233322,0.00013698,2]
[395409677,1764688251729,-2844.47086,0.00013698,2]
[395409679,1764688251739,-2844.47086,0.00013698,2]
[395409681,1764688251748,-2844.47086,0.00013698,2]
[395409683,1764688251757,-2844.470853,0.00013698,2]
[395409685,1764688251766,-151.0,0.00013698,2]
[395409687,1764688251774,-151.0,0.00013698,2]
[395409688,1764688251784,-151.0,0.00013698,2]
[395409690,1764688251794,-151.0,0.00013698,2]
[395409692,1764688251803,-230886.8024697,0.00013699,2]
[395409694,1764688251813,-1000.0,0.00013699,2]
[395409696,1764688251822,-1500.0,0.00013699,2]
[395409698,1764688251831,-151.000227,0.00013699,2]
[395409700,1764688251841,-500.0,0.00013699,2]
[395409702,1764688251851,-500.0,0.00013699,2]
[395409704,1764688251860,-500.0,0.00013699,2]
[395409706,1764688251869,-500.0,0.00013699,2]
[395409708,1764688251879,-500.0,0.00013699,2]
[395409710,1764688251888,-500.0,0.00013699,2]
[395409712,1764688251899,-2000.0,0.00013699,7]
[395409714,1764688251910,-436.22885718,0.00013699,2]
[395409716,1764688251919,-500.0,0.00013699,2]
[395409717,1764688251928,-500.0,0.00013699,2]
[395409719,1764688251937,-500.0,0.00013699,2]
[395409721,1764688251947,-184.13416818,0.00013699,2]
[395409723,1764688251956,-500.0,0.00013699,2]
[395409725,1764688251965,-501.20134995,0.00013699,2]
[395409727,1764688251976,-500.0,0.00013699,2]
[395409729,1764688251988,-500.0,0.00013699,2]
[395409731,1764688251998,-500.0,0.00013699,2]
[395409733,1764688252007,-160.0,0.00013699,2]
[395409735,1764688252016,-1000.0,0.00013699,2]
[395409737,1764688252026,-1000.0,0.00013699,2]
[395409739,1764688252036,-836.2048,0.00013699,2]
[395409740,1764688252048,-500.9779422,0.00013821,2]
[395409742,1764688252059,-167.07235763,0.00013821,2]
[395409744,1764688252069,-509.57781534,0.00013821,2]
[395409759,1764688252214,-1000.0,0.00013821,2]
[395409761,1764688252225,-1000.0,0.00013821,2]
[395409763,1764688252234,-1000.0,0.00013821,2]
[395409765,1764688252243,-585.07991406,0.00013821,2]
[395409767,1764688252252,-1000.0,0.00013821,2]
[395409769,1764688252262,-1000.0,0.00013821,2]
[395409771,1764688252271,-1000.0,0.00013821,2]
[395409773,1764688252281,-1000.0,0.00013821,2]
[395409775,1764688252290,-1000.0,0.00013821,2]
[395409777,1764688252300,-1000.0,0.00013821,2]
[395409779,1764688252309,-1000.0,0.00013821,2]
[395409781,1764688252318,-1000.0,0.00013821,2]
[395409783,1764688252327,-1000.0,0.00013821,2]
[395409784,1764688252336,-1000.0,0.00013821,2]
[395409786,1764688252345,-737.1730984,0.00013844,2]
[395409788,1764688252354,-165.0,0.00013973,2]
[395409790,1764688252364,-165.0,0.00013973,2]
[395409792,1764688252373,-165.0,0.00013973,2]
[395409794,1764688252382,-165.0,0.00013973,2]
[395409796,1764688252391,-165.0,0.00013973,2]
[395409798,1764688252401,-251.94200116,0.00013973,2]
[395409800,1764688252411,-290.39862941,0.00014037,2]
[395409802,1764688252420,-523.78581051,0.00014167,2]
[395409804,1764688252430,-243.0,0.000142,2]
[395409806,1764688252440,-500.0,0.00014247,2]
[395409808,1764688252450,-501.22886746,0.00014247,2]
[395409810,1764688252459,-1000.0,0.00014247,2]
[395409812,1764688252469,-1000.0,0.00014247,2]
[395409814,1764688252479,-1001.34970309,0.00014247,2]
[395409816,1764688252488,-272.41760357,0.00014247,2]
[395409818,1764688252498,-1000.0,0.00014247,2]
[395409820,1764688252507,-935.8764571,0.00014247,2]
[395409822,1764688252517,-1000.0,0.00014247,2]
[395409824,1764688252528,-1000.0,0.00014247,2]
[395409826,1764688252539,-1000.0,0.00014247,2]
[395409828,1764688252550,-1000.0,0.00014247,2]
[395409830,1764688252560,-1000.0,0.00014247,2]
[395409832,1764688252569,-260.0,0.00014247,2]
[395409834,1764688252578,-1500.0,0.00014368,2]
[395409836,1764688252588,-1500.0,0.00014368,2]
[395409837,1764688252597,-204.70368297,0.00014368,2]
[395409839,1764688252607,-815.98222957,0.00014368,2]
[395409841,1764688252616,-1500.0,0.00014368,2]
[395409843,1764688252626,-1500.0,0.00014368,2]
[395409846,1764688252635,-888.7729365,0.00014368,2]
[395409847,1764688252645,-1500.0,0.00014368,2]
[395409850,1764688252655,-1476.57011681,0.00014368,2]
[395409851,1764688252664,-519.16297824,0.00014368,2]
[395409853,1764688252674,-993.25667421,0.00014368,2]
[395409855,1764688252684,-223.4076795,0.00014368,2]
[395409857,1764688252694,-1500.0,0.00014368,2]
[395409859,1764688252703,-2000.0,0.00014514,7]
[395409861,1764688252712,-1945.5,0.00014551,2]
[395409863,1764688252722,-7087.95750133,0.00014584,2]
[395409865,1764688252730,-301.1433787,0.00014585,2]
[395409867,1764688252739,-151.0,0.000146,2]
[395409869,1764688252749,-10227.26454704,0.00014655,2]
[395409871,1764688252758,-100000.0,0.00014736,2]
[395409873,1764688252767,-173.12465853,0.00014755,10]
[395409875,1764688252776,-19411.44623,0.00014755,2]
[395409877,1764688252785,-2154.0,0.0001477,2]
[395409879,1764688252796,-631.0,0.0001477,2]
[395409881,1764688252813,-500.0,0.00014795,2]
[395409883,1764688252823,-1500.0,0.00014795,2]
[395409885,1764688252832,-1127.89421575,0.00014795,2]
[395409887,1764688252841,-1500.0,0.00014795,2]
[395409889,1764688252850,-501.28927059,0.00014795,2]
[395409891,1764688252859,-1500.0,0.00014795,2]
[395409893,1764688252870,-1500.0,0.00014795,2]
[395409895,1764688252879,-341.29284674,0.00014795,2]
[395409897,1764688252888,-1500.0,0.00014795,2]
[395409898,1764688252897,-360.0,0.00014795,2]
[395409900,1764688252907,-592.17583953,0.000149,2]
[395409902,1764688252916,-452.31963175,0.000149,2]
[395409905,1764688252926,-452.31963175,0.000149,2]
[395409906,1764688252936,-452.31963175,0.000149,2]
[395409908,1764688252945,-626.81976159,0.00014916,3]
[395409910,1764688252954,-2000.0,0.00014916,2]
[395409912,1764688252964,-2000.0,0.00014916,2]
[395409914,1764688252975,-2000.0,0.00014916,2]
[395409916,1764688252985,-2000.0,0.00014916,2]
[395409918,1764688252995,-2000.0,0.00014916,2]
[395409921,1764688253005,-2000.0,0.00014916,2]
[395409922,1764688253015,-1963.0,0.0001499,2]
[395409924,1764688253025,-500.0,0.00014991,2]
[395409926,1764688253035,-1014.13953218,0.00015,2]
[395409928,1764688253046,-23376.44960474,0.00015,2]
[395409930,1764688253057,-151.0,0.00015,2]
[395409932,1764688253066,-573.079875,0.00015068,2]
[395409934,1764688253076,-2575.676,0.00015068,2]
[395409936,1764688253086,-737.1730984,0.00015287,2]
[395409938,1764688253097,-500.0,0.00015319,2]
[395409940,1764688253106,-2000.0,0.00015329,7]
[395409942,1764688253116,-500.0,0.00015336,2]
[395409944,1764688253127,-460.0,0.00015342,2]
[395409946,1764688253137,-500.0,0.00015342,2]
[395409948,1764688253147,-2000.0,0.00015342,2]
[395409950,1764688253157,-2000.0,0.00015342,2]
[395409952,1764688253166,-2000.0,0.00015342,2]
[395409954,1764688253175,-2000.0,0.00015342,2]
[395409956,1764688253185,-2000.0,0.00015342,2]
[395409958,1764688253194,-150.0,0.00015372,2]
[395409960,1764688253204,-2500.0,0.00015464,2]
[395409962,1764688253214,-777.78774246,0.00015464,2]
[395409964,1764688253223,-2500.0,0.00015464,2]
[395409966,1764688253233,-1991.52563265,0.00015464,2]
[395409968,1764688253242,-242.11798483,0.00015464,2]
[395409970,1764688253252,-2500.0,0.00015464,2]
[395409972,1764688253262,-500.0,0.00015672,2]
[395409973,1764688253271,-160.0,0.000158,2]
[395409975,1764688253281,-560.0,0.0001589,2]
[395409978,1764688253292,-500.0,0.0001589,2]
[395409980,1764688253303,-2500.0,0.0001589,2]
[395409982,1764688253314,-2500.0,0.0001589,2]
[395409984,1764688253324,-485.09655895,0.0001589,2]
[395409986,1764688253334,-2500.0,0.0001589,2]
[395409988,1764688253344,-2500.0,0.0001589,2]
[395409990,1764688253354,-500.0,0.00015909,2]
[395409992,1764688253363,-173.12465853,0.00015915,11]
[395409994,1764688253372,-3000.0,0.00016,2]
[395409995,1764688253382,-3000.0,0.0001601,2]
[395409997,1764688253391,-3000.0,0.00016012,2]
[395409999,1764688253401,-3000.0,0.00016012,2]
[395410001,1764688253410,-3000.0,0.00016012,2]
[395410003,1764688253419,-3000.0,0.0001602,2]
[395410005,1764688253429,-3000.0,0.0001603,2]
[395410007,1764688253438,-3000.0,0.0001604,2]
[395410009,1764688253448,-500.0,0.00016049,2]
[395410011,1764688253458,-3000.0,0.0001605,2]
[395410013,1764688253468,-3000.0,0.0001606,2]
[395410015,1764688253478,-3000.0,0.0001607,2]
[395410017,1764688253493,-3000.0,0.0001608,2]
[395410019,1764688253502,-3000.0,0.0001609,2]
[395410021,1764688253512,-3000.0,0.000161,2]
[395410023,1764688253522,-150.0,0.00016104,2]
[395410025,1764688253532,-3000.0,0.0001611,2]
[395410027,1764688253542,-3000.0,0.0001612,2]
[395410029,1764688253552,-3000.0,0.0001613,2]
[395410031,1764688253562,-3000.0,0.0001614,2]
[395410033,1764688253571,-2000.0,0.00016144,7]
[395410035,1764688253580,-3000.0,0.0001615,2]
[395410037,1764688253590,-3000.0,0.0001616,2]
[395410038,1764688253599,-585.00752862,0.00016167,2]
[395410040,1764688253608,-3000.0,0.0001617,2]
[395410042,1764688253620,-3000.0,0.0001618,2]
[395410045,1764688253630,-500.0,0.00016188,2]
[395410046,1764688253639,-3000.0,0.0001619,2]
[395410048,1764688253649,-3000.0,0.000162,2]
[395410050,1764688253659,-3000.0,0.0001621,2]
[395410052,1764688253669,-3000.0,0.0001622,2]
[395410054,1764688253679,-3000.0,0.0001623,2]
[395410056,1764688253688,-3291.484587,0.0001624,2]
[395410058,1764688253698,-2000.0,0.000164,2]
[395410060,1764688253708,-2000.0,0.000164,2]
[395410062,1764688253718,-500.0,0.00016414,2]
[395410064,1764688253728,-501.95887276,0.00016419,2]
[395410066,1764688253737,-284.9,0.00016438,2]
[395410067,1764688253747,-660.0,0.00016438,2]
[395410068,1764688253756,-154.21277076,0.00016438,2]
[395410069,1764688253765,-200.0,0.00016438,3]
[395410070,1764688253774,-200.0,0.00016438,3]
[395410071,1764688253783,-200.0,0.00016438,3]
[395410072,1764688253792,-200.0,0.00016438,3]
[395410073,1764688253802,-340.25217286,0.00016438,3]
[395410074,1764688253811,-151.0,0.00016438,2]
[395410075,1764688253821,-151.0,0.00016438,2]
[395410076,1764688253830,-151.0,0.00016438,2]
[395410077,1764688253839,-151.0,0.00016438,2]
[395410078,1764688253848,-151.0,0.00016438,2]
[395410079,1764688253857,-151.0,0.00016438,2]
[395410080,1764688253866,-151.0,0.00016438,2]
[395410081,1764688253875,-151.0,0.00016438,2]
[395410082,1764688253884,-151.0,0.00016438,2]
[395410083,1764688253893,-151.0,0.00016438,2]
[395410084,1764688253902,-151.0,0.00016438,2]
[395410085,1764688253911,-151.0,0.00016438,2]
[395410086,1764688253920,-151.0,0.00016438,2]
[395410087,1764688253930,-151.0,0.00016438,2]
[395410088,1764688253939,-151.0,0.00016438,2]
[395410089,1764688253949,-151.0,0.00016438,2]
[395410090,1764688253960,-151.0,0.00016438,2]
[395410091,1764688253970,-161.968878,0.00016438,2]
[395410092,1764688253983,-163.42439995,0.00016438,2]
[395410093,1764688253992,-500.0,0.00016438,2]
[395410094,1764688254001,-607.56312181,0.00016438,2]
[395410095,1764688254012,-3000.0,0.00016438,2]
[395410096,1764688254021,-3000.0,0.00016438,2]
[395410097,1764688254030,-3000.0,0.00016438,2]
[395410098,1764688254040,-165.0952584,0.00016438,2]
[395410099,1764688254051,-165.0952584,0.00016438,2]
[395410100,1764688254063,-165.0952584,0.00016438,2]
[395410101,1764688254072,-165.0952584,0.00016438,2]
[395410102,1764688254081,-258.83347828,0.00016438,2]
[395410103,1764688254090,-190.0,0.00016471,2]
[395410104,1764688254099,-3500.0,0.0001656,2]
[395410105,1764688254108,-3500.0,0.0001656,2]
[395410106,1764688254118,-3500.0,0.0001656,2]
[395410107,1764688254127,-500.40500942,0.00016636,2]
[395410108,1764688254136,-500.0,0.00016706,2]
[395410109,1764688254146,-284.9,0.00016712,2]
[395410110,1764688254155,-519.08694112,0.00016733,2]
[395410111,1764688254164,-150.0,0.00016836,2]
[395410112,1764688254172,-2000.0,0.00016959,7]
[395410113,1764688254181,-284.9,0.00016986,2]
[395410115,1764688254191,-760.0,0.00016986,2]
[395410116,1764688254200,-3500.0,0.00016986,2]
[395410119,1764688254211,-3500.0,0.00016986,2]
[395410120,1764688254221,-3500.0,0.00016986,2]
[395410122,1764688254231,-500.0,0.00016986,2]
[395410124,1764688254241,-106523.19270699,0.00017,2]
[395410126,1764688254250,-500.3854289,0.00017,2]
[395410128,1764688254259,-353.75427879,0.00017,7]
[395410130,1764688254268,-173.12465853,0.00017074,13]
[395410132,1764688254278,-1003.5546645,0.00017108,2]
[395410134,1764688254286,-4000.0,0.00017108,2]
[395410136,1764688254294,-4000.0,0.00017108,2]
[395410138,1764688254303,-284.9,0.0001726,2]
[395410140,1764688254313,-301.7915627,0.0001726,2]
[395410142,1764688254322,-606.9322337,0.0001726,2]
[395410144,1764688254331,-301.8292211,0.0001726,2]
[395410146,1764688254340,-2000.0,0.000174,2]
[395410148,1764688254349,-2000.0,0.000174,2]
[395410163,1764688254492,-284.9,0.00017534,2]
[395410165,1764688254502,-860.0,0.00017534,2]
[395410167,1764688254511,-1001.75601657,0.00017534,2]
[395410169,1764688254521,-1001.60254385,0.00017534,2]
[395410171,1764688254531,-4000.0,0.00017534,2]
[395410173,1764688254540,-500.0,0.00017534,2]
[395410175,1764688254551,-800.0,0.0001755,2]
[395410177,1764688254560,-150.0,0.00017568,2]
[395410179,1764688254569,-2126.85103356,0.000176,2]
[395410181,1764688254578,-7087.95750133,0.00017647,2]
[395410183,1764688254587,-1503.56191799,0.00017656,2]
[395410185,1764688254596,-3004.62062921,0.00017656,2]
[395410187,1764688254605,-1375.453,0.0001777,2]
[395410189,1764688254614,-170.878,0.0001777,2]
[395410191,1764688254623,-2000.0,0.00017774,7]
[395410193,1764688254632,-250000.0,0.000178,3]
[395410195,1764688254642,-353.75427879,0.000178,3]
[395410197,1764688254651,-500.0,0.00017808,2]
[395410199,1764688254659,-500.0,0.00017808,2]
[395410201,1764688254668,-500.0,0.00017808,2]
[395410203,1764688254678,-500.0,0.00017808,2]
[395410205,1764688254687,-500.0,0.00017808,2]
[395410207,1764688254696,-500.0,0.00017808,2]
[395410209,1764688254705,-500.0,0.00017808,2]
[395410210,1764688254714,-500.0,0.00017808,2]
[395410212,1764688254722,-500.0,0.00017808,2]
[395410214,1764688254731,-384.1560701,0.00017808,2]
[395410216,1764688254740,-284.9,0.00017808,2]
[395410218,1764688254750,-800.0,0.0001786,2]
[395410220,1764688254759,-1242.0,0.00018,2]
[395410222,1764688254769,-9091.98555646,0.00018,2]
[395410224,1764688254779,-197.6,0.00018,2]
[395410226,1764688254788,-197.6,0.00018,2]
[395410228,1764688254797,-197.6,0.00018,2]
[395410230,1764688254807,-1433.085042,0.00018,2]
[395410232,1764688254816,-284.9,0.00018082,2]
[395410234,1764688254826,-960.0,0.00018082,2]
[395410236,1764688254835,-4500.0,0.00018082,2]
[395410238,1764688254845,-500.0,0.00018082,2]
[395410240,1764688254856,-301.8292211,0.00018082,2]
[395410242,1764688254865,-301.8292211,0.00018082,2]
[395410244,1764688254874,-301.8292211,0.00018082,2]
[395410246,1764688254883,-301.8292211,0.00018082,2]
[395410248,1764688254893,-301.8292211,0.00018082,2]
[395410250,1764688254902,-301.8292211,0.00018082,2]
[395410252,1764688254911,-301.8292211,0.00018082,2]
[395410254,1764688254920,-268.1056715,0.00018082,2]
[395410256,1764688254930,-646.22924673,0.00018167,2]
[395410258,1764688254939,-173.12465853,0.00018234,15]
[395410259,1764688254948,-150.0,0.000183,2]
[395410261,1764688254957,-353.75427879,0.000183,3]
[395410264,1764688254968,-284.9,0.00018356,2]
[395410266,1764688254980,-800.0,0.00018364,2]
[395410267,1764688254990,-1172.3,0.000184,2]
[395410269,1764688254999,-1172.299999,0.000184,2]
[395410271,1764688255008,-573.079875,0.00018493,2]
[395410273,1764688255019,-1000.0,0.000185,2]
[395410275,1764688255029,-800.0,0.00018501,2]
[395410277,1764688255038,-2000.0,0.00018589,7]
[395410279,1764688255048,-284.9,0.0001863,2]
[395410281,1764688255059,-1060.0,0.0001863,2]
[395410283,1764688255068,-5000.0,0.0001863,2]
[395410285,1764688255078,-500.0,0.0001863,2]
[395410287,1764688255087,-800.0,0.00018637,2]
[395410289,1764688255097,-800.0,0.00018722,2]
[395410291,1764688255108,-302.84859387,0.000189,2]
[395410293,1764688255118,-353.75427879,0.000189,3]
[395410295,1764688255127,-302.84859387,0.000189,2]
[395410297,1764688255136,-284.9,0.00018904,2]
[395410299,1764688255145,-800.0,0.00018936,2]
[395410301,1764688255155,-527.58989134,0.00018951,2]
[395410303,1764688255164,-14141.0,0.00019,2]
[395410305,1764688255173,-60821.47726217,0.00019,2]
[395420354,1764688384889,206.76552777,8.026e-05,2]
[395420395,1764688705041,167.46529792,0.0002,30]
[395420396,1764688719067,167.46529792,0.0002,30]